fUSD/lending_fUSD_20241219
["ID","MTS","AMOUNT","RATE_DAILY","PERIOD"]
[345982886,1734595854169,-566.63236621,0.00023829,5]
[345982887,1734595854178,-11376.95757904,0.0002383,2]
[345982888,1734595854187,-4408.83378388,0.00023831,5]
[345982889,1734595854197,-500.0,0.00023833,4]
[345982890,1734595854206,-500.0,0.00023833,4]
[345982891,1734595854215,-500.0,0.00023833,4]
[345982892,1734595854225,-783.93,0.00023833,4]
[345982893,1734595854234,-658.25,0.00023833,4]
[345982894,1734595854243,-500.0,0.00023833,4]
[345982895,1734595854253,-500.0,0.00023833,4]
[345982896,1734595854263,-500.0,0.00023833,4]
[345982897,1734595854272,-500.0,0.00023833,4]
[345982898,1734595854282,-542.9,0.00023833,4]
[345982899,1734595854292,-500.0,0.00023833,4]
[345982900,1734595854301,-513.88,0.00023833,4]
[345982901,1734595854311,-756.51,0.00023833,4]
[345982902,1734595854321,-559.18,0.00023833,4]
[345982903,1734595854330,-1943.35,0.00023833,4]
[345982904,1734595854339,-1371.76,0.00023833,4]
[345982905,1734595854349,-1115.28,0.00023833,4]
[345982906,1734595854358,-564.45,0.00023833,4]
[345982907,1734595854368,-659.01,0.00023833,4]
[345982908,1734595854377,-874.12,0.00023833,4]
[345982909,1734595854387,-500.0,0.00023833,4]
[345982910,1734595854401,-500.0,0.00023833,4]
[345982911,1734595854413,-667.86,0.00023833,4]
[345982912,1734595854424,-1787.37,0.00023833,4]
[345982913,1734595854433,-220.64,0.00023833,4]
[345982914,1734595854443,-500.0,0.00023833,4]
[345982915,1734595854452,-500.0,0.00023833,4]
[345982916,1734595854463,-500.0,0.00023833,4]
[345982917,1734595854473,-500.0,0.00023833,4]
[345982918,1734595854483,-500.0,0.00023833,4]
[345982919,1734595854493,-500.0,0.00023833,4]
[345982920,1734595854503,-500.0,0.00023833,4]
[345982921,1734595854515,-500.0,0.00023833,4]
[345982922,1734595854524,-500.0,0.00023833,4]
[345982923,1734595854534,-620.42,0.00023833,4]
[345982924,1734595854543,-500.0,0.00023834,4]
[345982925,1734595854553,-517.28,0.00023834,4]
[345982926,1734595854562,-721.93,0.00023834,4]
[345982927,1734595854572,-2731.73,0.00023834,4]
[345982928,1734595854581,-1364.66,0.00023834,4]
[345982929,1734595854590,-500.0,0.00023834,4]
[345982930,1734595854600,-500.0,0.00023834,4]
[345982931,1734595854609,-500.0,0.00023834,4]
[345982932,1734595854617,-500.0,0.00023834,4]
[345982933,1734595854627,-799.04,0.00023834,4]
[345982934,1734595854636,-500.0,0.00023834,4]
[345982935,1734595854648,-500.0,0.00023834,4]
[345982936,1734595854658,-500.0,0.00023834,4]
[345982937,1734595854667,-936.22,0.00023834,4]
[345982938,1734595854676,-1042.92,0.00023834,4]
[345982939,1734595854685,-756.63,0.00023834,4]
[345982940,1734595854695,-500.0,0.00023834,4]
[345982941,1734595854706,-556.2,0.00023834,4]
[345982942,1734595854717,-1185.07,0.00023834,4]
[345982943,1734595854728,-500.0,0.00023834,4]
[345982944,1734595854738,-500.0,0.00023834,4]
[345982945,1734595854748,-746.8,0.00023834,4]
[345982946,1734595854759,-671.48,0.00023834,4]
[345982947,1734595854768,-645.56,0.00023834,4]
[345982948,1734595854778,-500.0,0.00023834,4]
[345982949,1734595854787,-870.67,0.00023834,4]
[345982950,1734595854796,-701.45,0.00023834,4]
[345982951,1734595854806,-614.19,0.00023834,4]
[345982952,1734595854815,-960.51,0.00023834,4]
[345982953,1734595854824,-535.50296084,0.00023834,4]
[345982954,1734595854833,-835.11,0.00023834,4]
[345982955,1734595854843,-1479.84,0.00023834,4]
[345982956,1734595854852,-566.63236621,0.00023835,5]
[345982957,1734595854861,-500.0,0.00023835,4]
[345982958,1734595854870,-2608.0,0.00023835,4]
[345982959,1734595854880,-1400.0,0.00023835,4]
[345982960,1734595854889,-500.0,0.00023835,4]
[345982961,1734595854900,-500.0,0.00023835,4]
[345982962,1734595854910,-500.0,0.00023835,4]
[345982963,1734595854920,-521.10093258,0.00023835,4]
[345982964,1734595854929,-500.0,0.00023835,4]
[345982965,1734595854939,-165.23457258,0.00023835,2]
[345982966,1734595854948,-500.0,0.00023835,4]
[345982967,1734595854957,-500.0,0.00023835,4]
[345982968,1734595854966,-797.22,0.00023835,2]
[345982969,1734595854975,-500.0,0.00023835,4]
[345982970,1734595854984,-500.0,0.00023835,4]
[345982971,1734595854993,-500.0,0.00023835,4]
[345982972,1734595855002,-500.0,0.00023835,4]
[345982973,1734595855011,-500.0,0.00023835,4]
[345982974,1734595855021,-500.0,0.00023835,4]
[345982975,1734595855030,-4624.50986339,0.0002384,5]
[345982976,1734595855039,-4624.50986339,0.00023844,5]
[345982977,1734595855088,-4408.83378388,0.0002385,5]
[345982978,1734595855098,-1000.0,0.00023854,2]
[345982979,1734595855107,-4408.83378388,0.00023857,5]
[345982980,1734595855117,-166.74844408,0.00023863,2]
[345982981,1734595855126,-4408.83378388,0.00023866,5]
[345982982,1734595855136,-4624.50986339,0.00023868,5]
[345982983,1734595855148,-4624.50986339,0.00023876,5]
[345982984,1734595855158,-4624.50986339,0.00023876,5]
[345982985,1734595855167,-688.2,0.00023886,2]
[345982986,1734595855176,-566.63236621,0.00023887,5]
[345982987,1734595855186,-566.63236621,0.00023888,5]
[345982988,1734595855195,-151.0,0.0002389,7]
[345982989,1734595855204,-151.0,0.0002389,7]
[345982990,1734595855213,-4624.50986339,0.0002389,5]
[345982991,1734595855223,-487.26,0.0002389,2]
[345982992,1734595855232,-800.0,0.0002389,2]
[345982993,1734595855241,-800.0,0.0002389,2]
[345982994,1734595855251,-566.63236621,0.00023892,5]
[345982995,1734595855260,-4408.83378388,0.00023893,5]
[345982996,1734595855269,-566.63236621,0.00023898,5]
[345982997,1734595855278,-4408.83378388,0.000239,5]
[345982998,1734595855287,-244.62964481,0.000239,2]
[345982999,1734595855296,-250.20984941,0.000239,2]
[345983000,1734595855306,-3100.0,0.000239,8]
[345983001,1734595855315,-569.99713335,0.00023949,2]
[345983002,1734595855324,-649.44,0.00023957,2]
[345983003,1734595855333,-500.0,0.00023962,7]
[345983004,1734595855342,-1075.0,0.00023973,2]
[345983005,1734595855351,-501.48037947,0.00023973,2]
[345983006,1734595855360,-593.50875606,0.00023973,2]
[345983007,1734595855370,-500.0,0.00023983,4]
[345983008,1734595855379,-275.02240559,0.00023983,4]
[345983009,1734595855387,-500.0,0.00023983,4]
[345983010,1734595855398,-151.0,0.00023983,7]
[345983011,1734595855407,-151.0,0.00023983,7]
[345983012,1734595855416,-150.121916,0.00023997,4]
[345983013,1734595855425,-150.121916,0.00023997,5]
[345983014,1734595855434,-150.121916,0.00023997,6]
[345983015,1734595855443,-150.121916,0.00023997,7]
[345983016,1734595855452,-150.121916,0.00023997,8]
[345983017,1734595855461,-150.121916,0.00023998,4]
[345983018,1734595855470,-150.121916,0.00023998,5]
[345983019,1734595855479,-150.121916,0.00023998,6]
[345983020,1734595855488,-150.121916,0.00023998,7]
[345983021,1734595855497,-300.0,0.00023999,2]
[345983022,1734595855508,-306.20923891,0.00023999,2]
[345983023,1734595855517,-778.02,0.00023999,2]
[345983024,1734595855527,-999.0,0.00023999,2]
[345983025,1734595855537,-50553.07551393,0.00024,3]
[345983026,1734595855547,-17695.62567303,0.00024,3]
[345983027,1734595855556,-1388.82425257,0.00024,3]
[345983028,1734595855566,-211500.94867402,0.00024,5]
[345983029,1734595855577,-77024.15388005,0.00024,2]
[345983030,1734595855588,-7279.0,0.00024,2]
[345983031,1734595855598,-10000.0,0.00024,2]
[345983032,1734595855608,-600.0,0.00024,2]
[345983033,1734595855617,-1329.90164699,0.00024,7]
[345983034,1734595855627,-1384629.80332336,0.00024,5]
[345983035,1734595855636,-25311.93702147,0.00024,2]
[345983036,1734595855647,-9951.5129733,0.00024,5]
[345983037,1734595855656,-10000.0,0.00024,2]
[345983038,1734595855664,-82498.1,0.00024,30]
[345983039,1734595855674,-162588.69,0.00024,2]
[345983040,1734595855683,-5137.89340006,0.00024,2]
[345983041,1734595855692,-6349.01415543,0.00024,2]
[345983042,1734595855701,-1075.60800988,0.00024,2]
[345983043,1734595855710,-1000.0,0.00024,2]
[345983044,1734595855719,-1000.0,0.00024,2]
[345983045,1734595855728,-975.48865147,0.00024,2]
[345983046,1734595855737,-200.0,0.00024,2]
[345983047,1734595855746,-167732.38715112,0.00024,12]
[345983048,1734595855755,-274.207496,0.00024,7]
[345983049,1734595855764,-203.890383,0.00024,7]
[345983050,1734595855773,-203.890383,0.00024,7]
[345983051,1734595855782,-203.890383,0.00024,7]
[345983052,1734595855791,-203.890383,0.00024,7]
[345983053,1734595855800,-203.890383,0.00024,7]
[345983054,1734595855808,-203.890383,0.00024,7]
[345983055,1734595855817,-98244.22452611,0.00024,2]
[345983056,1734595855826,-151.0,0.00024,7]
[345983057,1734595855836,-281.011623,0.00024,7]
[345983058,1734595855845,-151.0,0.00024,7]
[345983059,1734595855854,-151.0,0.00024,7]
[345983060,1734595855863,-167.953452,0.00024,7]
[345983061,1734595855872,-154.663644,0.00024,7]
[345983062,1734595855881,-151.0,0.00024,7]
[345983063,1734595855890,-151.0,0.00024,7]
[345983064,1734595855900,-151.0,0.00024,7]
[345983065,1734595855909,-151.0,0.00024,7]
[345983066,1734595855918,-693.79,0.0002401,2]
[345983067,1734595855928,-1296.85,0.00024019,2]
[345983068,1734595855937,-806.7,0.00024055,2]
[345983069,1734595855947,-770.02,0.00024055,2]
[345983070,1734595855955,-770.02,0.00024055,2]
[345983071,1734595855963,-770.02,0.00024055,2]
[345983072,1734595855973,-166.74844408,0.00024055,2]
[345983073,1734595855982,-500.0,0.00024057,4]
[345983074,1734595855991,-500.0,0.00024057,4]
[345983075,1734595855999,-500.0,0.00024057,4]
[345983076,1734595856008,-500.0,0.00024057,4]
[345983077,1734595856018,-442.52225272,0.00024057,4]
[345983078,1734595856027,-198.75183657,0.00024057,4]
[345983079,1734595856037,-506.72007322,0.00024057,2]
[345983080,1734595856046,-500.0,0.00024057,4]
[345983081,1734595856055,-500.0,0.00024057,4]
[345983082,1734595856064,-500.0,0.00024057,4]
[345983083,1734595856074,-500.0,0.00024057,4]
[345983084,1734595856084,-500.0,0.00024057,4]
[345983085,1734595856093,-500.0,0.00024057,4]
[345983086,1734595856102,-500.0,0.00024057,4]
[345983087,1734595856112,-500.0,0.00024057,4]
[345983088,1734595856121,-500.0,0.00024057,4]
[345983089,1734595856130,-500.0,0.00024057,4]
[345983090,1734595856140,-526.28,0.00024057,4]
[345983091,1734595856151,-500.0,0.00024057,4]
[345983092,1734595856161,-500.0,0.00024057,4]
[345983093,1734595856171,-500.0,0.00024057,4]
[345983094,1734595856180,-500.0,0.00024057,4]
[345983095,1734595856189,-500.0,0.00024057,4]
[345983096,1734595856199,-500.0,0.00024057,4]
[345983097,1734595856208,-500.0,0.00024057,4]
[345983098,1734595856219,-500.0,0.00024057,4]
[345983099,1734595856228,-500.0,0.00024057,4]
[345983100,1734595856239,-510.12,0.00024057,4]
[345983101,1734595856248,-244.62964475,0.00024067,2]
[345983102,1734595856257,-152.0,0.00024085,4]
[345983103,1734595856266,-314.6533,0.00024088,7]
[345983104,1734595856275,-300.0,0.000241,2]
[345983105,1734595856284,-154.088307,0.00024103,4]
[345983106,1734595856293,-500.0,0.00024107,4]
[345983107,1734595856303,-500.0,0.00024107,4]
[345983108,1734595856312,-500.0,0.00024107,4]
[345983109,1734595856321,-783.93,0.00024107,4]
[345983110,1734595856330,-658.25,0.00024107,4]
[345983111,1734595856339,-500.0,0.00024107,4]
[345983112,1734595856348,-500.0,0.00024107,4]
[345983113,1734595856357,-500.0,0.00024107,4]
[345983114,1734595856366,-500.0,0.00024107,4]
[345983115,1734595856375,-542.9,0.00024107,4]
[345983116,1734595856383,-500.0,0.00024107,4]
[345983117,1734595856392,-513.88,0.00024107,4]
[345983118,1734595856403,-756.51,0.00024107,4]
[345983119,1734595856413,-559.18,0.00024107,4]
[345983120,1734595856423,-1943.35,0.00024107,4]
[345983121,1734595856432,-1371.76,0.00024107,4]
[345983122,1734595856442,-1115.28,0.00024107,4]
[345983123,1734595856451,-564.45,0.00024107,4]
[345983124,1734595856460,-659.01,0.00024107,4]
[345983125,1734595856469,-874.12,0.00024107,4]
[345983126,1734595856478,-500.0,0.00024107,4]
[345983127,1734595856487,-500.0,0.00024107,4]
[345983128,1734595856496,-667.86,0.00024107,4]
[345983129,1734595856511,-1787.37,0.00024107,4]
[345983130,1734595856520,-500.0,0.00024107,4]
[345983131,1734595856529,-427.54,0.00024107,4]
[345983132,1734595856539,-500.0,0.00024107,4]
[345983133,1734595856550,-500.0,0.00024107,4]
[345983134,1734595856561,-500.0,0.00024107,4]
[345983135,1734595856571,-500.0,0.00024107,4]
[345983136,1734595856582,-500.0,0.00024107,4]
[345983137,1734595856592,-500.0,0.00024107,4]
[345983138,1734595856602,-500.0,0.00024107,4]
[345983139,1734595856611,-620.42,0.00024107,4]
[345983140,1734595856621,-151.0,0.00024107,7]
[345983141,1734595856631,-203.890383,0.00024108,7]
[345983142,1734595856641,-203.890383,0.00024108,7]
[345983143,1734595856652,-500.0,0.00024108,4]
[345983144,1734595856662,-517.28,0.00024108,4]
[345983145,1734595856672,-721.93,0.00024108,4]
[345983146,1734595856682,-2731.73,0.00024108,4]
[345983147,1734595856692,-1364.66,0.00024108,4]
[345983148,1734595856702,-500.0,0.00024108,4]
[345983149,1734595856712,-500.0,0.00024108,4]
[345983150,1734595856721,-579.09323581,0.00024108,4]
[345983151,1734595856731,-595.22479887,0.00024108,4]
[345983152,1734595856741,-799.04,0.00024108,4]
[345983153,1734595856751,-500.0,0.00024108,4]
[345983154,1734595856761,-500.0,0.00024108,4]
[345983155,1734595856771,-500.0,0.00024108,4]
[345983156,1734595856780,-936.22,0.00024108,4]
[345983157,1734595856790,-1042.92,0.00024108,4]
[345983158,1734595856799,-756.63,0.00024108,4]
[345983159,1734595856808,-500.0,0.00024108,4]
[345983160,1734595856817,-556.2,0.00024108,4]
[345983161,1734595856827,-1185.07,0.00024108,4]
[345983162,1734595856836,-500.0,0.00024108,4]
[345983163,1734595856845,-500.0,0.00024108,4]
[345983164,1734595856855,-746.8,0.00024108,4]
[345983165,1734595856864,-671.48,0.00024108,4]
[345983166,1734595856874,-645.56,0.00024108,4]
[345983167,1734595856883,-500.0,0.00024108,4]
[345983168,1734595856893,-870.67,0.00024108,4]
[345983169,1734595856905,-701.45,0.00024108,4]
[345983170,1734595856915,-614.19,0.00024108,4]
[345983171,1734595856924,-960.51,0.00024108,4]
[345983172,1734595856934,-835.11,0.00024108,4]
[345983173,1734595856945,-1479.84,0.00024108,4]
[345983174,1734595856955,-500.0,0.00024109,4]
[345983175,1734595856964,-2608.0,0.00024109,4]
[345983176,1734595856974,-1400.0,0.00024109,4]
[345983177,1734595856983,-500.0,0.00024109,4]
[345983178,1734595856992,-500.0,0.00024109,4]
[345983179,1734595857002,-500.0,0.00024109,4]
[345983180,1734595857011,-500.0,0.00024109,4]
[345983181,1734595857021,-500.0,0.00024109,4]
[345983182,1734595857030,-500.0,0.00024109,4]
[345983183,1734595857039,-797.22,0.00024109,2]
[345983184,1734595857048,-500.0,0.00024109,4]
[345983185,1734595857057,-500.0,0.00024109,4]
[345983186,1734595857067,-500.0,0.00024109,4]
[345983187,1734595857076,-500.0,0.00024109,4]
[345983188,1734595857086,-500.0,0.00024109,4]
[345983189,1734595857095,-500.0,0.00024109,4]
[345983190,1734595857104,-11376.95757904,0.0002412,2]
[345983191,1734595857114,-778.02,0.00024136,2]
[345983192,1734595857123,-230.47343364,0.00024176,2]
[345983193,1734595857133,-119748.75472264,0.00024182,2]
[345983194,1734595857142,-150.0,0.00024192,2]
[345983195,1734595857153,-150.0,0.00024192,2]
[345983196,1734595857162,-1949.01,0.00024192,2]
[345983197,1734595857171,-364.93,0.00024192,2]
[345983198,1734595857180,-569.99713335,0.00024199,2]
[345983199,1734595857190,-5000.0,0.00024216,2]
[345983200,1734595857199,-244.62964475,0.00024233,2]
[345983201,1734595857209,-1434.0,0.0002425,2]
[345983202,1734595857220,-337.96,0.00024256,2]
[345983203,1734595857230,-500.0,0.00024257,4]
[345983204,1734595857242,-337.34203631,0.00024257,4]
[345983205,1734595857252,-2352.82,0.00024267,2]
[345983206,1734595857262,-3884.0,0.00024267,2]
[345983207,1734595857273,-150.0,0.00024267,2]
[345983208,1734595857283,-778.02,0.00024273,2]
[345983209,1734595857293,-166.74844408,0.00024274,2]
[345983210,1734595857302,-314.6533,0.00024288,7]
[345983211,1734595857312,-17482.15429034,0.000243,14]
[345983212,1734595857321,-500.0,0.000243,2]
[345983213,1734595857330,-330.25236216,0.000243,2]
[345983214,1734595857339,-500.0,0.00024331,4]
[345983215,1734595857349,-500.0,0.00024331,4]
[345983216,1734595857359,-500.0,0.00024331,4]
[345983217,1734595857369,-500.0,0.00024331,4]
[345983218,1734595857378,-500.0,0.00024331,4]
[345983219,1734595857388,-500.0,0.00024331,4]
[345983220,1734595857399,-500.0,0.00024331,4]
[345983221,1734595857408,-500.0,0.00024331,4]
[345983222,1734595857417,-500.0,0.00024331,4]
[345983223,1734595857426,-500.0,0.00024331,4]
[345983224,1734595857437,-500.0,0.00024331,4]
[345983225,1734595857446,-500.0,0.00024331,4]
[345983226,1734595857456,-500.0,0.00024331,4]
[345983227,1734595857465,-500.0,0.00024331,4]
[345983228,1734595857475,-526.28,0.00024331,4]
[345983229,1734595857484,-500.0,0.00024331,4]
[345983230,1734595857493,-500.0,0.00024331,4]
[345983231,1734595857502,-500.0,0.00024331,4]
[345983232,1734595857514,-500.0,0.00024331,4]
[345983233,1734595857524,-500.0,0.00024331,4]
[345983234,1734595857533,-394.16486228,0.00024331,4]
[345983235,1734595857542,-500.0,0.00024331,4]
[345983236,1734595857553,-500.0,0.00024331,4]
[345983237,1734595857562,-500.0,0.00024331,4]
[345983238,1734595857571,-510.12,0.00024331,4]
[345983239,1734595857580,-1916.56,0.00024333,2]
[345983240,1734595857589,-186.058657,0.00024365,4]
[345983241,1734595857599,-154.088307,0.00024365,4]
[345983242,1734595857608,-206.02,0.00024379,2]
[345983243,1734595857618,-500.0,0.00024381,4]
[345983244,1734595857627,-500.0,0.00024381,4]
[345983245,1734595857638,-500.0,0.00024381,4]
[345983246,1734595857650,-783.93,0.00024381,4]
[345983247,1734595857659,-658.25,0.00024381,4]
[345983248,1734595857668,-500.0,0.00024381,4]
[345983249,1734595857677,-500.0,0.00024381,4]
[345983250,1734595857688,-500.0,0.00024381,4]
[345983251,1734595857698,-500.0,0.00024381,4]
[345983252,1734595857709,-542.9,0.00024381,4]
[345983253,1734595857719,-446.94,0.00024381,4]
[345983254,1734595857729,-513.88,0.00024381,4]
[345983255,1734595857740,-756.51,0.00024381,4]
[345983256,1734595857751,-559.18,0.00024381,4]
[345983257,1734595857762,-1943.35,0.00024381,4]
[345983258,1734595857774,-1371.76,0.00024381,4]
[345983259,1734595857785,-1115.28,0.00024381,4]
[345983260,1734595857795,-564.45,0.00024381,4]
[345983261,1734595857806,-659.01,0.00024381,4]
[345983262,1734595857816,-874.12,0.00024381,4]
[345983263,1734595857826,-500.0,0.00024381,4]
[345983264,1734595857835,-500.0,0.00024381,4]
[345983265,1734595857844,-667.86,0.00024381,4]
[345983266,1734595857853,-1787.37,0.00024381,4]
[345983267,1734595857863,-500.0,0.00024381,4]
[345983268,1734595857873,-500.0,0.00024381,4]
[345983269,1734595857882,-500.0,0.00024381,4]
[345983270,1734595857891,-500.0,0.00024381,4]
[345983271,1734595857902,-500.0,0.00024381,4]
[345983272,1734595857911,-500.0,0.00024381,4]
[345983273,1734595857920,-620.42,0.00024381,4]
[345983274,1734595857930,-500.0,0.00024381,4]
[345983275,1734595857941,-500.0,0.00024381,4]
[345983276,1734595857953,-500.0,0.00024382,4]
[345983277,1734595857962,-517.28,0.00024382,4]
[345983278,1734595857971,-721.93,0.00024382,4]
[345983279,1734595857981,-2731.73,0.00024382,4]
[345983280,1734595857990,-1364.66,0.00024382,4]
[345983281,1734595858000,-500.0,0.00024382,4]
[345983282,1734595858009,-500.0,0.00024382,4]
[345983283,1734595858018,-799.04,0.00024382,4]
[345983284,1734595858027,-500.0,0.00024382,4]
[345983285,1734595858037,-500.0,0.00024382,4]
[345983286,1734595858046,-500.0,0.00024382,4]
[345983287,1734595858056,-936.22,0.00024382,4]
[345983288,1734595858065,-1042.92,0.00024382,4]
[345983289,1734595858074,-756.63,0.00024382,4]
[345983290,1734595858084,-500.0,0.00024382,4]
[345983291,1734595858094,-556.2,0.00024382,4]
[345983292,1734595858103,-1185.07,0.00024382,4]
[345983293,1734595858112,-534.20982275,0.00024382,4]
[345983294,1734595858122,-500.0,0.00024382,4]
[345983295,1734595858131,-746.8,0.00024382,4]
[345983296,1734595858140,-671.48,0.00024382,4]
[345983297,1734595858151,-645.56,0.00024382,4]
[345983298,1734595858161,-500.0,0.00024382,4]
[345983299,1734595858170,-870.67,0.00024382,4]
[345983300,1734595858179,-701.45,0.00024382,4]
[345983301,1734595858189,-614.19,0.00024382,4]
[345983302,1734595858198,-960.51,0.00024382,4]
[345983303,1734595858207,-835.11,0.00024382,4]
[345983304,1734595858217,-1479.84,0.00024382,4]
[345983305,1734595858226,-500.0,0.00024383,4]
[345983306,1734595858236,-2608.0,0.00024383,4]
[345983307,1734595858245,-1400.0,0.00024383,4]
[345983308,1734595858255,-1000.0,0.00024383,2]
[345983309,1734595858264,-1000.0,0.00024383,2]
[345983310,1734595858274,-1000.0,0.00024383,2]
[345983311,1734595858283,-1000.0,0.00024383,2]
[345983312,1734595858293,-1000.0,0.00024383,2]
[345983313,1734595858303,-525.50373644,0.00024383,2]
[345983314,1734595858312,-500.0,0.00024383,4]
[345983315,1734595858321,-500.0,0.00024383,4]
[345983316,1734595858331,-500.0,0.00024383,4]
[345983317,1734595858340,-500.0,0.00024383,4]
[345983318,1734595858350,-500.0,0.00024383,4]
[345983319,1734595858359,-500.0,0.00024383,4]
[345983320,1734595858368,-797.22,0.00024383,2]
[345983321,1734595858377,-500.0,0.00024383,4]
[345983322,1734595858386,-500.0,0.00024383,4]
[345983323,1734595858396,-500.0,0.00024383,4]
[345983324,1734595858406,-500.0,0.00024383,4]
[345983325,1734595858415,-500.0,0.00024383,4]
[345983326,1734595858425,-500.0,0.00024383,4]
[345983327,1734595858434,-151.0,0.00024383,7]
[345983328,1734595858443,-244.62964475,0.000244,2]
[345983329,1734595858452,-600.0,0.000244,8]
[345983330,1734595858462,-2646.5403893,0.000244,2]
[345983331,1734595858472,-203.71206358,0.000244,2]
[345983332,1734595858481,-778.02,0.0002441,2]
[345983333,1734595858491,-11376.95757904,0.0002441,2]
[345983334,1734595858501,-569.99713335,0.0002445,2]
[345983335,1734595858514,-12405.0,0.00024463,7]
[345983336,1734595858524,-314.6533,0.00024488,7]
[345983337,1734595858533,-166.74844408,0.00024493,2]
[345983338,1734595858542,-103826.42343621,0.00024498,2]
[345983339,1734595858553,-2110.0,0.000245,2]
[345983340,1734595858564,-2561.74327041,0.000245,2]
[345983341,1734595858574,-15448.93300576,0.000245,2]
[345983342,1734595858585,-35597.29570898,0.000245,2]
[345983343,1734595858595,-109703.23252908,0.000245,2]
[345983344,1734595858606,-56581.07987992,0.000245,2]
[345983345,1734595858616,-500.0,0.000245,2]
[345983346,1734595858626,-500.0,0.000245,2]
[345983347,1734595858636,-5512.0,0.000245,3]
[345983348,1734595858798,-43845.94401175,0.000245,7]
[345983349,1734595858808,-350995.66705166,0.000245,2]
[345983350,1734595858817,-1434.0,0.000245,2]
[345983351,1734595858827,-203.890383,0.000245,7]
[345983352,1734595858836,-203.890383,0.000245,7]
[345983353,1734595858845,-203.890383,0.000245,7]
[345983354,1734595858854,-203.890383,0.000245,7]
[345983355,1734595858865,-600.0,0.000245,8]
[345983356,1734595858874,-151.0,0.000245,7]
[345983357,1734595858883,-500.0,0.00024531,4]
[345983358,1734595858893,-230.47343364,0.00024538,2]
[345983359,1734595858904,-778.02,0.00024547,2]
[345983360,1734595858913,-244.62964475,0.00024567,2]
[345983361,1734595858922,-212.0,0.0002458,2]
[345983362,1734595858932,-206.0,0.0002458,2]
[345983363,1734595858940,-704.66312219,0.0002459,3]
[345983364,1734595858950,-2170.28,0.000246,2]
[345983365,1734595858958,-218.0,0.000246,2]
[345983366,1734595858967,-63350.25925811,0.000246,2]
[345983367,1734595858977,-600.0,0.000246,8]
[345983368,1734595858986,-500.0,0.00024605,4]
[345983369,1734595858995,-500.0,0.00024605,4]
[345983370,1734595859004,-500.0,0.00024605,4]
[345983371,1734595859013,-500.0,0.00024605,4]
[345983372,1734595859022,-500.0,0.00024605,4]
[345983373,1734595859031,-500.0,0.00024605,4]
[345983374,1734595859040,-500.0,0.00024605,4]
[345983375,1734595859049,-500.0,0.00024605,4]
[345983376,1734595859058,-500.0,0.00024605,4]
[345983377,1734595859067,-500.0,0.00024605,4]
[345983378,1734595859075,-500.0,0.00024605,4]
[345983379,1734595859085,-500.0,0.00024605,4]
[345983380,1734595859094,-500.0,0.00024605,4]
[345983381,1734595859103,-500.0,0.00024605,4]
[345983382,1734595859112,-526.28,0.00024605,4]
[345983383,1734595859120,-500.0,0.00024605,4]
[345983384,1734595859130,-500.0,0.00024605,4]
[345983385,1734595859139,-500.0,0.00024605,4]